bitfinex-derivatives/quotes_SOLF0:USTF0_20241222
["timestamp","ask_amount","ask_price","bid_price","bid_amount"]
[1734871483575,0.90064793,187.16,187.1,1.7013]
[1734871483878,0.90064793,187.16,187.05,60.62384404]
[1734871484178,0.90064793,187.16,187.06,79.21110164]
[1734871485078,0.90064793,187.16,187.05,1.5632]
[1734871487074,0.90064793,187.16,187.06,13.4607579]
[1734871487976,0.90064793,187.16,187.05,60.62384404]
[1734871488277,0.9006989,187.15,187.05,60.62384404]
[1734871488478,2.5,187.17,187.05,60.62384404]
[1734871488776,0.90069431,187.16,187.05,60.62384404]
[1734871490279,2.5,187.17,187.05,60.62384404]
[1734871490479,0.90070002,187.16,187.06,92.76040266]
[1734871491277,0.90070002,187.16,187.07,13.47990345]
[1734871492483,0.90070002,187.16,187.05,60.62384404]
[1734871493583,0.90070002,187.16,187.06,13.48334414]
[1734871494677,0.90070002,187.16,187.07,13.48334414]
[1734871495483,2.5,187.17,187.06,59.06064404]
[1734871495484,0.9007345,187.15,187.06,59.06064404]
[1734871495679,0.9007345,187.14,187.06,59.06064404]
[1734871495879,2.5,187.13,187.06,59.06064404]
[1734871497486,2.5,187.13,187.07,13.48192443]
[1734871498674,2.5,187.13,187.06,59.06064404]
[1734871500985,2.5,187.13,187.07,13.48983954]
[1734871502087,0.90081592,187.12,187.07,13.48983954]
[1734871502287,0.90081592,187.12,187.05,90.15416606]
[1734871502288,0.90081592,187.12,187.05,1.5632]
[1734871502786,2.5,187.13,187.05,1.5632]
[1734871503289,2.5,187.13,187.04,60.68614404]
[1734871503687,0.90081938,187.12,187.04,60.68614404]
[1734871504086,2.5,187.13,187.04,60.68614404]
[1734871504693,2.5,187.13,187.05,13.50038439]
[1734871504884,0.90082008,187.12,187.05,13.50038439]
[1734871505392,2.5,187.13,187.05,13.50038439]
[1734871505592,0.90082001,187.12,187.05,13.50038439]
[1734871505794,0.90082001,187.12,187.04,60.68614404]
[1734871507718,0.90082001,187.12,187.04,59.06064404]
[1734871508017,18.58,187.13,187.04,59.06064404]
[1734871508018,4.13770885,187.11,187.04,59.06064404]
[1734871508322,0.90110885,187.1,187.05,13.49724322]
[1734871508507,2.5,187.09,187.05,13.49724322]
[1734871508804,0.90110885,187.08,187.05,13.49724322]
[1734871509198,0.90110885,187.08,187.05,10.90174322]
[1734871509399,0.90110885,187.08,186.98,60.74304404]
[1734871509601,29.20782658,187.08,186.98,59.06064404]
[1734871509805,16.08,187.06,186.98,59.06064404]
[1734871510011,19.48110885,187.05,186.98,59.06064404]
[1734871510212,0.90110885,187.04,186.98,59.06064404]
[1734871510515,0.9014417,187.03,186.98,59.06064404]
[1734871510711,0.9014417,187.02,186.93,59.06064404]
[1734871511027,2.5,187.01,186.93,59.06064404]
[1734871511208,3.40154085,187.0,186.93,59.06064404]
[1734871511417,0.90154085,186.99,186.93,59.06064404]
[1734871512304,0.90154085,186.99,186.91,1.6761]
[1734871514994,0.90154085,186.99,186.88,1.5955]
[1734871515590,0.90172005,186.98,186.88,1.5955]
[1734871515894,0.90172005,186.97,186.88,1.5955]
[1734871516094,3.40172005,186.96,186.87,1.5683]
[1734871516296,3.40172005,186.95,186.87,1.5683]
[1734871516594,3.40172005,186.94,186.87,1.5683]
[1734871516795,3.40172005,186.93,186.87,1.5683]
[1734871516988,2.5,186.93,186.87,1.5683]
[1734871517294,2.5,186.93,186.82,1.7231]
[1734871517490,0.90187335,186.92,186.82,1.7231]
[1734871518293,0.90197618,186.91,186.82,1.7231]
[1734871518496,0.90197618,186.9,186.82,1.7231]
[1734871518696,2.5,186.89,186.82,1.7231]
[1734871519000,2.5,186.88,186.82,1.7231]
[1734871519189,1.5809,186.95,186.82,1.7231]
[1734871519392,3.40200091,186.94,186.82,1.7231]
[1734871519599,0.90200091,186.93,186.82,1.7231]
[1734871521401,2.5,186.94,186.82,1.7231]
[1734871521994,2.5,186.94,186.84,2.678]
[1734871522201,2.5,186.94,186.84,2.5]
[1734871522702,2.5,186.94,186.86,2.6776]
[1734871523001,2.5,186.94,186.87,1.7206]
[1734871523400,2.5,186.94,186.88,1.595]
[1734871526004,1.72,187.01,186.89,1.6459]
[1734871526203,3.4015841,187.0,186.89,1.6459]
[1734871526499,0.9015841,186.99,186.89,1.6459]
[1734871526703,2.5,187.0,186.9,2.6772]
[1734871526906,2.5,187.0,186.89,1.6459]
[1734871527104,2.5,187.0,186.91,2.677]
[1734871527500,1.5991,187.09,186.89,1.6459]
[1734871527703,3.40136888,187.08,186.89,1.6459]
[1734871528006,2.5,187.07,186.89,1.6459]
[1734871528208,2.5,187.08,186.99,2.6758]
[1734871528506,2.5,187.08,187.0,5.0063]
[1734871529602,2.5,187.07,187.0,5.0063]
[1734871529801,2.5,187.07,187.01,2.6756]
[1734871530105,2.5,187.09,187.0,7.5063]
[1734871530300,2.5,187.1,187.0,7.5063]
[1734871530506,16.08,187.18,187.02,2.6754]
[1734871530698,1.605,187.19,187.0,7.5063]
[1734871530898,0.90078244,187.18,187.07,2.6747]
[1734871531099,2.5,187.17,187.08,1.6639]
[1734871531308,3.40064249,187.16,187.08,1.6639]
[1734871531602,3.40073398,187.15,187.01,2.5]
[1734871531806,3.40073398,187.15,187.02,1.6639]
[1734871531807,0.90073398,187.14,187.02,1.6639]
[1734871532208,2.51523398,187.14,187.02,1.6639]
[1734871532509,0.90073398,187.13,187.02,1.6639]
[1734871533511,1.6145,187.14,187.02,1.6639]
[1734871533804,0.90094518,187.13,187.02,1.6639]
[1734871534310,0.90099963,187.12,187.02,1.6639]
[1734871534508,3.40099963,187.11,187.02,1.6639]
[1734871534708,0.90099963,187.1,187.02,1.6639]
[1734871535309,0.90099963,187.1,187.0,3.3368]
[1734871538812,2.5,187.11,187.01,2.6756]
[1734871539005,0.90095377,187.1,187.01,2.6756]
[1734871539206,2.5,187.11,187.01,2.6756]
[1734871541106,2.5,187.11,187.0,3.3368]
[1734871542207,2.5,187.11,187.0,6.0124]
[1734871542514,2.5,187.1,187.0,3.3368]
[1734871543215,2.5,187.11,187.0,3.3368]
[1734871543404,2.5,187.11,187.03,2.6753]
[1734871543610,17.6496,187.19,187.0,3.3368]
[1734871543912,3.40071849,187.18,187.0,3.3368]
[1734871544212,0.90071342,187.17,187.05,2.6749]
[1734871544405,0.90071342,187.17,187.06,1.7198]
[1734871545408,2.5,187.16,187.06,1.7198]
[1734871545811,2.5,187.16,187.07,2.6747]
[1734871546014,1.5696,187.19,187.06,1.7198]
[1734871546211,2.5,187.18,187.06,1.7198]
[1734871546512,2.5,187.19,187.07,2.5]
[1734871548027,2.5,187.19,187.09,2.6744]
[1734871548314,2.5,187.19,187.1,3.2424]
[1734871548510,2.5,187.19,187.11,2.6741]
[1734871548711,21.0701,187.26,187.11,2.6741]
[1734871548712,2.5,187.2,187.11,2.6741]
[1734871549111,2.5,187.2,187.1,5.9167]
[1734871549414,2.5,187.2,187.1,3.2424]
[1734871552919,2.5,187.2,187.1,1.6143]
[1734871553213,0.90045414,187.19,187.1,1.6143]
[1734871554421,0.90055446,187.18,187.1,1.6143]
[1734871554620,2.5,187.2,187.1,1.6143]
[1734871554920,0.90055442,187.19,187.1,1.6143]
[1734871557719,0.90054884,187.18,187.1,1.6143]
[1734871557922,2.5,187.2,187.1,1.6143]
[1734871558125,0.90054882,187.19,187.1,1.6143]
[1734871558619,2.5,187.2,187.1,1.6143]
[1734871558922,0.90054885,187.19,187.1,1.6143]
[1734871559817,0.9005488,187.18,187.1,1.6143]
[1734871560130,2.5,187.2,187.1,1.6143]
[1734871560328,0.9005488,187.19,187.1,1.6143]
[1734871560725,2.5,187.18,187.1,1.6143]
[1734871560921,2.5,187.17,187.1,4.2885]
[1734871562321,21.0701,187.26,187.1,1.6143]
[1734871562528,0.9003912,187.25,187.1,1.6143]
[1734871562728,0.9003912,187.25,187.11,1.5996]
[1734871563029,2.5,187.24,187.11,1.5996]
[1734871563225,0.9003912,187.23,187.12,2.5]
[1734871563425,0.9003912,187.23,187.15,2.6736]
[1734871563625,0.9003912,187.23,187.13,1.6573]
[1734871563925,2.5,187.24,187.13,1.6573]
[1734871564122,0.90037964,187.23,187.1,60.67494404]
[1734871564725,0.90046712,187.22,187.1,60.67494404]
[1734871564924,0.90046712,187.21,187.1,60.67494404]
[1734871565129,3.40046712,187.2,187.08,1.6573]
[1734871565328,3.40046712,187.19,187.08,1.6573]
[1734871565525,2.5,187.19,187.08,1.6573]
[1734871565731,0.90054492,187.18,187.08,1.6573]
[1734871566927,1.6618,187.17,187.05,60.69594404]
[1734871567230,0.90070616,187.16,187.05,60.69594404]
[1734871567428,2.5,187.15,187.05,60.69594404]
[1734871567830,2.5,187.15,187.05,59.06064404]
[1734871568124,0.90077741,187.14,187.05,59.06064404]
[1734871568325,0.90077741,187.14,187.02,60.62854404]
[1734871569235,0.90091263,187.13,187.02,60.62854404]
[1734871569534,0.90091263,187.12,187.02,1.5679]
[1734871569735,2.5,187.11,187.02,1.5679]
[1734871572835,0.90098511,187.1,186.99,60.78354404]
[1734871573434,0.90098511,187.1,186.99,1.7229]
[1734871574232,1.7283,187.09,186.99,1.7229]
[1734871574933,0.90103469,187.08,186.97,60.76854404]
[1734871575135,2.5,187.07,186.97,59.06064404]
[1734871575436,0.90094419,187.06,186.97,59.06064404]
[1734871576034,0.90094419,187.06,186.93,60.78964404]
[1734871576839,0.90084718,187.05,186.93,60.78964404]
[1734871577040,0.90084718,187.04,186.93,4.4056]
[1734871577239,2.5,187.03,186.93,3.298]
[1734871577438,2.5,187.05,186.93,3.298]
[1734871577745,1.7283,187.09,186.93,3.298]
[1734871578043,2.5,187.08,186.94,92.57042657]
[1734871578235,2.5,187.08,186.99,2.6758]
[1734871578435,2.5,187.08,187.0,1.6944]
[1734871578740,2.5,187.07,187.0,1.6944]
[1734871582437,0.90113126,187.06,186.93,64.85864404]
[1734871582645,0.90113126,187.06,186.94,1.6901]
[1734871583033,2.5,187.07,186.94,1.6901]
[1734871583234,2.5,187.07,186.98,2.676]
[1734871584634,2.5,187.07,187.02,2.6754]
[1734871584835,2.5,187.1,187.03,1.6455]
[1734871585740,16.08,187.2,187.03,1.6455]
[1734871585741,9.63387227,187.19,187.03,1.6455]
[1734871586044,4.4778399,187.27,187.05,16.08]
[1734871586244,17.03021621,187.28,187.11,2.6741]
[1734871586245,0.90035513,187.26,187.11,2.6741]
[1734871586444,11.87418384,187.28,187.12,4.1455]
[1734871586644,0.90030133,187.27,187.13,5.6315]
[1734871587049,0.90024036,187.26,187.13,5.6315]
[1734871587345,3.40024036,187.25,187.13,5.6315]
[1734871587544,3.40024036,187.24,187.13,5.6315]
[1734871587746,2.5,187.26,187.13,5.6315]
[1734871587941,0.90018244,187.25,187.13,5.6315]
[1734871588244,4.1274,187.29,187.17,2.6732]
[1734871588445,0.90000893,187.28,187.18,2.5]
[1734871588648,0.90000893,187.28,187.19,2.5]
[1734871589648,1.6274,187.29,187.19,2.5]
[1734871589840,0.90000684,187.28,187.19,2.5]
[1734871590045,0.90000684,187.28,187.19,5.1729]
[1734871592244,2.5,187.29,187.19,5.1729]
[1734871592453,0.89999299,187.28,187.19,2.5]
[1734871592845,0.89999299,187.28,187.16,5.1733]
[1734871593051,0.89999299,187.28,187.13,16.44273627]
[1734871593253,0.89999299,187.28,187.15,2.5]
[1734871593451,0.89999299,187.28,187.13,5.8053]
[1734871594649,2.5,187.29,187.13,5.8053]
[1734871594849,0.90020213,187.28,187.14,2.6737]
[1734871595352,2.5,187.29,187.14,2.6737]
[1734871595553,0.90017848,187.28,187.13,3.1315]
[1734871597154,0.90017848,187.28,187.14,2.6737]
[1734871597355,0.90017848,187.28,187.13,3.1315]
[1734871597556,2.56,187.27,187.13,3.1315]
[1734871597751,0.90017848,187.26,187.13,3.1315]
[1734871598152,0.90017848,187.26,187.16,2.6733]
[1734871598553,0.90017848,187.26,187.16,2.56]
[1734871598755,2.56,187.26,187.17,2.6733]
[1734871599057,2.56,187.26,187.16,2.56]
[1734871600759,2.56,187.27,187.16,5.2335]
[1734871600959,0.90009583,187.26,187.16,5.2335]
[1734871601157,0.90009583,187.26,187.13,5.6915]
[1734871601560,0.90009583,187.26,187.13,3.1315]
[1734871601758,1.6312,187.25,187.13,3.1315]
[1734871601958,0.90009583,187.24,187.13,3.1315]
[1734871602161,2.56,187.23,187.13,3.1315]
[1734871605363,2.56,187.23,187.16,2.6735]
[1734871607861,2.56,187.23,187.15,2.6736]
[1734871608259,2.56,187.23,187.13,3.1315]
[1734871609864,0.9003068,187.22,187.13,3.1315]
[1734871610461,0.9003068,187.22,187.1,107.81733546]
[1734871610666,3.2325,187.21,187.1,107.81733546]
[1734871611067,0.90038653,187.2,187.1,107.81733546]
[1734871611268,2.56,187.19,187.1,107.81733546]
[1734871612663,0.90054259,187.18,187.1,107.81733546]
[1734871613465,0.90054259,187.18,187.07,5.2347]
[1734871614368,2.56,187.19,187.07,5.2347]
[1734871614570,0.90053694,187.18,187.06,4.8962]
[1734871614969,0.90053694,187.18,187.06,1.6579]
[1734871615567,0.90053694,187.18,187.02,59.06064404]
[1734871615870,0.90053694,187.18,187.01,1.5829]
[1734871617975,18.64,187.19,187.01,1.5829]
[1734871618173,0.90095085,187.18,187.01,1.5829]
[1734871618470,1.0685473,187.17,186.96,59.06064404]
[1734871618677,17.1485473,187.17,186.96,59.06064404]
[1734871618871,0.90090991,187.16,186.96,59.06064404]
[1734871619073,16.08,187.14,186.96,59.06064404]
[1734871619372,16.08,187.12,186.94,5.9568]
[1734871619570,3.46082467,187.11,186.94,5.9568]
[1734871619876,0.90082467,187.1,186.94,5.9568]
[1734871620174,0.90082467,187.1,186.94,3.2802]
[1734871620576,2.56,187.09,186.94,3.2802]
[1734871621374,2.56,187.09,187.01,2.6755]
[1734871621574,2.56,187.09,187.02,5.1724]
[1734871622171,2.56,187.09,187.02,7.8478]
[1734871622370,1.0685473,187.17,187.02,7.8478]
[1734871622578,3.46079432,187.16,187.02,7.8478]
[1734871622767,0.90079432,187.15,187.02,7.8478]
[1734871623173,0.90079432,187.15,187.04,2.6751]
[1734871623575,0.90079432,187.15,187.04,2.52]
[1734871623878,2.52,187.16,187.04,2.52]
[1734871624079,3.5885473,187.17,187.04,2.52]
[1734871624273,3.5885473,187.17,187.08,2.6745]
[1734871624677,3.5885473,187.17,187.05,2.52]
[1734871624878,2.52,187.17,187.05,18.55548215]
[1734871625272,2.52,187.17,187.05,15.88048215]
[1734871625472,2.52,187.17,187.05,13.36048215]
[1734871625672,0.90065147,187.16,187.05,13.36048215]
[1734871625877,0.90065147,187.16,187.04,2.6751]
[1734871626079,2.52,187.17,187.04,2.6751]
[1734871626272,0.90062935,187.16,187.04,2.6751]
[1734871627973,0.90063784,187.15,187.04,2.6751]
[1734871628179,2.52,187.17,187.04,2.6751]
[1734871628480,0.90066198,187.16,187.04,2.6751]
[1734871628780,0.90066198,187.16,187.03,2.6753]
[1734871628975,2.58136198,187.16,187.03,2.6753]
[1734871629175,0.90066198,187.15,187.03,2.6753]
[1734871630682,0.9007217,187.14,187.03,2.6753]
[1734871630880,2.52,187.13,187.03,2.6753]
[1734871632083,2.52,187.13,187.02,5.1724]
[1734871636489,0.90041948,187.12,187.02,5.1724]
[1734871637087,2.52,187.13,187.02,5.1724]
[1734871637686,2.52,187.12,187.02,7.6924]
[1734871637986,20.5318316,187.21,187.02,7.6924]
[1734871637987,2.52,187.17,187.02,7.6924]
[1734871638182,2.52,187.17,187.08,2.6746]
[1734871638988,2.52,187.17,187.06,2.52]
[1734871639189,0.90057385,187.16,187.03,2.52]
[1734871639491,2.52,187.17,187.07,2.6747]
[1734871640786,2.52,187.17,187.06,2.6749]
[1734871640986,2.52,187.17,187.05,59.06064404]
[1734871641187,0.90062967,187.16,187.05,59.06064404]
[1734871641587,2.52,187.17,187.04,59.06064404]
[1734871641792,0.90061253,187.16,187.04,59.06064404]
[1734871642392,0.90061253,187.16,187.05,16.08371187]
[1734871643393,0.90061253,187.16,187.05,13.40871187]
[1734871643594,0.90066271,187.15,187.05,13.40871187]
[1734871643893,0.90066271,187.14,187.04,59.06064404]
[1734871644193,3.42073332,187.13,187.04,59.06064404]
[1734871644389,0.90073332,187.12,187.04,59.06064404]
[1734871644594,0.90073332,187.12,187.03,59.06064404]
[1734871644988,2.48433332,187.12,187.03,59.06064404]
[1734871645189,0.90073332,187.11,187.03,59.06064404]
[1734871645789,0.90073332,187.11,187.02,1.719]
[1734871645990,0.90094519,187.1,187.02,1.719]
[1734871646193,2.52,187.09,187.0,59.06064404]
[1734871646394,0.90102658,187.08,187.0,59.06064404]
[1734871647793,0.90102658,187.08,186.96,43.5730934]
[1734871647794,0.90102658,187.08,186.96,59.06064404]
[1734871647998,17.7302,187.07,186.96,59.06064404]
[1734871648291,0.90102658,187.06,186.96,59.06064404]
[1734871648497,2.52,187.05,186.96,59.06064404]
[1734871648697,0.90102658,187.04,186.93,59.06064404]
[1734871648898,2.47352658,187.04,186.93,59.06064404]
[1734871649098,0.9007957,187.03,186.93,59.06064404]
[1734871649306,0.9007957,187.03,186.92,88.59096606]
[1734871649307,0.9007957,187.03,186.91,60.77934404]
[1734871649897,2.5822957,187.03,186.91,60.77934404]
[1734871650092,0.9007957,187.02,186.92,13.4372114]
[1734871650399,2.52,187.01,186.92,13.4372114]
[1734871650599,0.9007957,187.0,186.92,13.4372114]
[1734871650799,0.9007957,187.0,186.91,1.7187]
[1734871651201,2.52,187.01,186.91,1.7187]
[1734871651395,0.90063736,187.0,186.91,1.7187]
[1734871651997,2.52,186.99,186.91,1.7187]
[1734871652197,1.5725,187.04,186.92,2.6768]
[1734871652395,2.52,187.03,186.92,2.6768]
[1734871652698,2.52,187.03,186.93,1.6372]
[1734871654091,2.52,187.02,186.93,1.6372]
[1734871654291,1.654,187.08,186.93,1.6372]
[1734871654600,2.52,187.07,186.93,1.6372]
[1734871654798,2.52,187.07,186.95,2.6764]
[1734871654999,2.52,187.07,186.96,1.7051]
[1734871657397,2.52,187.07,186.95,59.06064404]
[1734871657603,0.90072982,187.06,186.95,59.06064404]
[1734871658101,0.90072982,187.06,186.94,59.06064404]
[1734871659422,0.90072982,187.06,186.93,90.22816606]
[1734871659423,0.90072982,187.06,186.93,1.6372]
[1734871662313,2.52,187.05,186.93,1.6372]
[1734871662504,2.52,187.05,186.93,4.1572]
[1734871662803,2.52,187.05,186.95,2.6763]
[1734871663200,2.52,187.05,186.93,4.1572]
[1734871663404,2.52,187.05,186.94,92.5555782]
[1734871664005,0.90110689,187.04,186.94,92.5555782]
[1734871664501,0.90110689,187.04,186.93,1.6372]
[1734871665302,3.42110689,187.03,186.93,1.6372]
[1734871665507,2.52,187.03,186.92,59.06064404]
[1734871665805,0.90131813,187.02,186.91,3.3216]
[1734871666707,2.52,187.01,186.91,3.3216]
[1734871667303,2.52,187.01,186.91,5.9985]
[1734871667709,2.52,187.0,186.93,2.6767]
[1734871668412,2.52,187.0,186.92,2.6769]
[1734871669312,2.52,187.0,186.93,13.38246082]
[1734871670307,2.52,187.0,186.92,59.06064404]
[1734871670707,2.52,187.0,186.94,2.6765]
[1734871671109,61.18,187.09,186.93,2.52]
[1734871671410,3.42110834,187.08,186.93,81.65855106]
[1734871671605,2.52,187.07,186.93,81.65855106]
[1734871671913,2.52,187.07,186.97,2.6761]
[1734871672105,2.52,187.07,186.93,81.65855106]
[1734871672411,2.52,187.07,186.95,2.6764]
[1734871672613,2.52,187.07,186.96,1.6636]
[1734871678611,2.52,187.07,186.97,13.42734672]
[1734871679311,2.52,187.07,186.96,60.72424404]
[1734871680911,2.52,187.07,186.97,79.22765024]
[1734871681112,0.90114069,187.06,186.97,79.22765024]
[1734871681703,2.52,187.05,186.97,79.22765024]
[1734871681904,2.52,187.05,186.96,90.25456606]
[1734871681905,2.52,187.05,186.98,2.6759]
[1734871682109,2.52,187.05,186.99,3.2419]
[1734871682311,2.52,187.04,186.99,3.2419]
[1734871682608,2.52,187.04,186.96,60.72424404]
[1734871682912,2.52,187.04,186.96,59.06064404]
[1734871683310,2.52,187.04,186.98,59.06064404]
[1734871684207,0.90127413,187.03,186.98,59.06064404]
[1734871684417,4.17197413,187.03,186.98,59.06064404]
[1734871684608,0.90135552,187.02,186.98,59.06064404]
[1734871684913,0.90135552,187.02,186.95,59.06064404]
[1734871685113,1.7027,187.03,186.95,59.06064404]
[1734871685511,2.52,187.04,186.95,59.06064404]
[1734871685812,2.52,187.04,186.92,62.33324404]
[1734871686013,2.52,187.04,186.93,2.6767]
[1734871686715,2.52,187.04,186.95,59.06064404]
[1734871686912,0.90127524,187.03,186.95,59.06064404]
[1734871687809,0.90127524,187.03,186.92,150.92421011]
[1734871687810,0.90127524,187.03,186.94,59.06064404]
[1734871688706,2.52,187.04,186.93,59.06064404]
[1734871688906,9.34230289,187.08,186.93,59.06064404]
[1734871689211,3.42119573,187.07,186.93,59.06064404]
[1734871689412,0.90119573,187.06,186.93,59.06064404]
[1734871689716,2.52,187.07,186.96,59.06064404]
[1734871689917,0.90112484,187.06,186.96,59.06064404]
[1734871691516,0.90112484,187.06,186.97,13.44471605]
[1734871692309,0.90122335,187.05,186.97,13.44471605]
[1734871692514,0.90122335,187.04,186.97,13.44471605]
[1734871692716,2.52,187.03,186.94,59.06064404]
[1734871692912,2.52,187.02,186.94,59.06064404]
[1734871693507,2.52,187.02,186.95,13.45521555]
[1734871694912,2.52,187.02,186.94,59.06064404]
[1734871695216,2.52,187.01,186.94,59.06064404]
[1734871697116,2.52,187.01,186.95,13.46245459]
[1734871697316,0.9014232,187.0,186.95,13.46245459]
[1734871697517,0.90149876,187.0,186.95,13.46245459]
[1734871697818,0.90149876,187.0,186.92,3.2726]
[1734871698906,0.90149876,187.0,186.92,1.6905]
[1734871699106,0.90149876,187.0,186.91,59.06064404]
[1734871699313,1.6452,186.99,186.88,59.06064404]
[1734871699510,0.90149876,186.98,186.88,59.06064404]
[1734871699716,2.52,186.97,186.88,59.06064404]
[1734871699915,0.90163393,186.96,186.88,59.06064404]
[1734871700708,0.90163393,186.96,186.87,1.581]
[1734871707726,2.52,186.97,186.87,1.581]
[1734871707922,0.90151545,186.96,186.87,1.581]
[1734871710426,0.9013639,186.95,186.87,1.581]
[1734871710729,0.9013639,186.94,186.87,1.581]
[1734871710925,3.4213639,186.93,186.87,1.581]
[1734871711120,2.52,186.93,186.87,1.581]
[1734871722944,2.52,186.93,186.85,3.2108]
[1734871724441,0.90160678,186.92,186.82,1.6886]
[1734871726048,0.90145873,186.91,186.82,1.6886]
[1734871726242,0.90145873,186.9,186.82,1.6886]
[1734871726447,3.40145873,186.89,186.82,1.6886]
[1734871726645,3.40145873,186.88,186.82,1.6886]
[1734871726945,0.90144051,186.87,186.82,1.6886]
[1734871728847,0.90144051,186.87,186.8,1.5707]
[1734871730350,0.90144051,186.87,186.79,0.18959]
[1734871732146,1.6022,186.91,186.79,0.18959]
[1734871732348,0.90106582,186.9,186.79,0.18959]
[1734871732645,2.5,186.89,186.79,0.18959]
[1734871732844,2.5,186.89,186.78,1.6953]
[1734871733050,2.5,186.89,186.81,2.6784]
[1734871733247,2.5,186.89,186.82,1.5595]
[1734871733454,2.5,186.89,186.82,3.2829]
[1734871734350,2.5,186.89,186.83,13.46813427]
[1734871735250,4.47305684,186.98,186.83,13.46813427]
[1734871735454,3.40120529,186.97,186.82,62.34354404]
[1734871735650,0.90120529,186.96,186.82,62.34354404]
[1734871736751,0.90120529,186.96,186.83,2.678]
[1734871736957,0.90120529,186.96,186.84,59.06064404]
[1734871738556,0.90120529,186.96,186.85,92.73243125]
[1734871739258,0.90071037,186.95,186.85,92.73243125]
[1734871739557,2.5,186.94,186.83,59.06064404]
[1734871740260,2.5,186.94,186.84,92.73070772]
[1734871741359,2.5,186.94,186.85,13.46802547]
[1734871742456,2.5,186.94,186.83,59.06064404]
[1734871743456,2.5,186.94,186.84,13.467107]
[1734871743662,21.84875266,187.0,186.84,16.145107]
[1734871743873,3.40074282,186.99,186.84,13.467107]
[1734871744053,0.90074282,186.98,186.84,13.467107]
[1734871744362,0.90074282,186.98,186.85,2.6778]
[1734871744562,0.90074282,186.98,186.86,1.7021]
[1734871744761,0.90078524,186.97,186.86,1.7021]
[1734871744956,2.5,186.99,186.86,4.3798]
[1734871745156,14.13759269,187.02,186.86,1.7021]
[1734871745365,2.5,186.99,186.86,1.7021]
[1734871745962,2.5,186.99,186.87,13.467107]
[1734871746164,2.5,186.99,186.91,2.6769]
[1734871746359,2.5,186.99,186.92,3.1497]
[1734871747664,4.47305684,187.05,186.92,3.1497]
[1734871747858,0.90124043,187.04,186.93,2.6767]
[1734871748054,2.5,187.03,186.94,4.1394]
[1734871748254,62.767,187.09,186.94,4.1394]
[1734871748459,1.6444,187.14,186.94,4.1394]
[1734871748460,0.90119065,187.08,186.94,4.1394]
[1734871748658,3.40119065,187.07,186.94,4.1394]
[1734871748867,2.5,187.07,186.94,4.1394]
[1734871749367,2.5,187.07,186.98,2.676]
[1734871750067,2.5,187.07,186.97,2.6762]
[1734871750272,2.5,187.07,186.95,92.6178499]
[1734871750669,2.5,187.07,186.95,95.2943499]
[1734871751468,2.5,187.07,186.95,2.6765]
[1734871752369,2.5,187.07,186.96,2.6763]
[1734871753663,2.5,187.07,186.94,4.1394]
[1734871753866,0.90006574,187.06,186.94,6.8159]
[1734871754071,2.5,187.07,186.94,6.8159]
[1734871754371,0.90003233,187.06,186.94,1.6394]
[1734871754765,2.47263233,187.06,186.94,1.6394]
[1734871754970,4.18780598,187.05,186.93,13.38123791]
[1734871755173,4.18780598,187.05,186.92,62.21034404]
[1734871755174,0.89990598,187.04,186.92,3.1497]
[1734871755372,2.5,187.03,186.92,3.1497]
[1734871756971,0.89975752,187.02,186.92,3.1497]
[1734871757177,2.5,187.03,186.92,3.1497]
[1734871757578,2.5,187.03,186.93,2.5]
[1734871758178,4.9278,187.11,186.93,2.5]
[1734871758379,3.40005722,187.1,187.0,2.6757]
[1734871758574,0.90005722,187.09,187.0,2.6757]
[1734871758774,2.5,187.08,187.0,2.6757]
[1734871759377,2.5,187.1,186.98,1.6848]
[1734871759578,1.7098,187.17,186.98,1.6848]
[1734871759776,3.40024065,187.16,187.04,2.6751]
[1734871760076,3.40024326,187.15,186.98,1.6848]